fUST/lending_fUST_20250812
["ID","MTS","AMOUNT","RATE_DAILY","PERIOD"]
[378763062,1755005442239,-500.0,0.00017758,2]
[378763063,1755005442253,-500.0,0.00017758,2]
[378763064,1755005442268,-500.0,0.00017758,2]
[378763065,1755005442278,-500.0,0.00017758,2]
[378763066,1755005442289,-500.0,0.00017758,2]
[378763067,1755005442299,-500.0,0.00017758,2]
[378763068,1755005442310,-500.0,0.00017758,2]
[378763069,1755005442323,-500.0,0.00017758,2]
[378763070,1755005442332,-244.175523,0.00017758,2]
[378763071,1755005442342,-460.0,0.00017759,2]
[378763072,1755005442352,-460.0,0.00017759,2]
[378763073,1755005442362,-460.0,0.00017759,2]
[378763074,1755005442372,-460.0,0.00017759,2]
[378763075,1755005442382,-460.0,0.00017759,2]
[378763076,1755005442392,-460.0,0.00017759,2]
[378763077,1755005442402,-460.0,0.00017759,2]
[378763078,1755005442412,-460.0,0.00017759,2]
[378763079,1755005442421,-460.0,0.00017759,2]
[378763080,1755005442431,-460.0,0.00017759,2]
[378763081,1755005442441,-460.0,0.00017759,2]
[378763082,1755005442451,-363.50603091,0.00017759,2]
[378763083,1755005442460,-460.0,0.00017759,2]
[378763084,1755005442470,-570.19256178,0.00017759,2]
[378763085,1755005442480,-460.0,0.00017759,2]
[378763086,1755005442490,-460.0,0.00017759,2]
[378763087,1755005442504,-460.0,0.00017759,2]
[378763088,1755005442514,-460.0,0.00017759,2]
[378763089,1755005442524,-460.0,0.00017759,2]
[378763090,1755005442535,-337.63814961,0.00017759,2]
[378763091,1755005442546,-465.80773449,0.00017759,2]
[378763092,1755005442556,-460.0,0.00017759,2]
[378763093,1755005442566,-460.0,0.00017759,2]
[378763094,1755005442577,-460.0,0.00017759,2]
[378763095,1755005442587,-460.0,0.00017759,2]
[378763096,1755005442598,-460.0,0.00017759,2]
[378763097,1755005442608,-460.0,0.00017759,2]
[378763098,1755005442619,-460.0,0.00017759,2]
[378763099,1755005442634,-460.0,0.00017759,2]
[378763100,1755005442644,-470.61100482,0.00017759,2]
[378763101,1755005442655,-460.0,0.00017759,2]
[378763102,1755005442666,-742.24,0.00017759,2]
[378763103,1755005442676,-460.0,0.00017759,2]
[378763104,1755005442686,-460.0,0.00017759,2]
[378763105,1755005442695,-460.0,0.00017759,2]
[378763106,1755005442706,-460.0,0.00017759,2]
[378763107,1755005442715,-460.0,0.00017759,2]
[378763108,1755005442727,-460.0,0.00017759,2]
[378763109,1755005442737,-460.0,0.00017759,2]
[378763110,1755005442753,-460.0,0.00017759,2]
[378763111,1755005442762,-460.0,0.00017759,2]
[378763112,1755005442772,-460.0,0.00017759,2]
[378763113,1755005442782,-460.0,0.00017759,2]
[378763114,1755005442792,-460.0,0.00017759,2]
[378763115,1755005442803,-461.99479052,0.00017759,2]
[378763116,1755005442813,-460.0,0.00017759,2]
[378763117,1755005442823,-460.0,0.00017759,2]
[378763118,1755005442833,-467.50718232,0.00017759,2]
[378763119,1755005442844,-460.0,0.00017759,2]
[378763120,1755005442854,-403.76008107,0.00017759,2]
[378763121,1755005442863,-460.0,0.00017759,2]
[378763122,1755005442873,-460.0,0.00017759,2]
[378763123,1755005442883,-511.45059259,0.00017759,2]
[378763124,1755005442893,-460.0,0.00017759,2]
[378763125,1755005442902,-460.0,0.00017759,2]
[378763126,1755005442911,-460.0,0.00017759,2]
[378763127,1755005442921,-460.0,0.00017759,2]
[378763128,1755005442931,-460.0,0.00017759,2]
[378763129,1755005442940,-460.0,0.00017759,2]
[378763130,1755005442950,-460.0,0.00017759,2]
[378763131,1755005442959,-460.0,0.00017759,2]
[378763132,1755005442968,-466.33812446,0.00017759,2]
[378763133,1755005442978,-460.0,0.00017759,2]
[378763134,1755005442988,-545.01120239,0.00017759,2]
[378763135,1755005443000,-460.0,0.00017759,2]
[378763136,1755005443010,-462.48184951,0.00017759,2]
[378763137,1755005443019,-460.99574746,0.00017759,2]
[378763138,1755005443028,-461.5908199,0.00017759,2]
[378763139,1755005443038,-277.78336998,0.00017759,2]
[378763140,1755005443047,-460.0,0.00017759,2]
[378763141,1755005443057,-460.0,0.00017759,2]
[378763142,1755005443067,-460.0,0.00017759,2]
[378763143,1755005443076,-460.0,0.00017759,2]
[378763145,1755005443085,-460.0,0.00017759,2]
[378763146,1755005443095,-353.03593812,0.00017759,2]
[378763147,1755005443104,-198.09871778,0.00017759,2]
[378763148,1755005443114,-460.0,0.00017759,2]
[378763149,1755005443123,-460.0,0.00017759,2]
[378763150,1755005443133,-462.00738125,0.00017759,2]
[378763151,1755005443143,-460.0,0.00017759,2]
[378763152,1755005443152,-460.38725175,0.00017759,2]
[378763154,1755005443162,-460.0,0.00017759,2]
[378763156,1755005443172,-460.0,0.00017759,2]
[378763158,1755005443182,-241.63986341,0.00017759,2]
[378763160,1755005443192,-460.0,0.00017759,2]
[378763163,1755005443202,-460.0,0.00017759,2]
[378763165,1755005443211,-460.0,0.00017759,2]
[378763167,1755005443221,-460.0,0.00017759,2]
[378763170,1755005443230,-288.55939699,0.00017759,2]
[378763172,1755005443241,-460.0,0.00017759,2]
[378763174,1755005443254,-460.0,0.00017759,2]
[378763176,1755005443264,-460.0,0.00017759,2]
[378763178,1755005443273,-460.0,0.00017759,2]
[378763180,1755005443283,-462.23358971,0.00017759,2]
[378763182,1755005443293,-461.72326758,0.00017759,2]
[378763184,1755005443303,-460.7169586,0.00017759,2]
[378763185,1755005443313,-460.0,0.00017759,2]
[378763186,1755005443323,-460.0,0.00017759,2]
[378763187,1755005443333,-266.15431464,0.00017759,2]
[378763188,1755005443343,-460.0,0.00017759,2]
[378763189,1755005443362,-460.0,0.00017759,2]
[378763190,1755005443372,-854.22,0.00017759,2]
[378763191,1755005443382,-168.6200183,0.00017759,2]
[378763192,1755005443392,-462.02992346,0.00017759,2]
[378763193,1755005443402,-460.0,0.00017759,2]
[378763194,1755005443411,-460.0,0.00017759,2]
[378763195,1755005443421,-460.0,0.00017759,2]
[378763196,1755005443431,-460.0,0.00017759,2]
[378763197,1755005443440,-460.0,0.00017759,2]
[378763198,1755005443450,-460.0,0.00017759,2]
[378763199,1755005443459,-460.0,0.00017759,2]
[378763200,1755005443469,-460.0,0.00017759,2]
[378763201,1755005443478,-462.29136156,0.00017759,2]
[378763202,1755005443487,-460.0,0.00017759,2]
[378763203,1755005443499,-461.68726973,0.00017759,2]
[378763204,1755005443508,-461.86932462,0.00017759,2]
[378763205,1755005443517,-460.0,0.00017759,2]
[378763206,1755005443527,-460.0,0.00017759,2]
[378763207,1755005443537,-460.0,0.00017759,2]
[378763208,1755005443547,-461.17347108,0.00017759,2]
[378763210,1755005443555,-460.0,0.00017759,2]
[378763212,1755005443565,-460.0,0.00017759,2]
[378763214,1755005443575,-460.0,0.00017759,2]
[378763228,1755005443865,-460.0,0.00017759,2]
[378763229,1755005443877,-460.0,0.00017759,2]
[378763230,1755005443888,-461.02632671,0.00017759,2]
[378763231,1755005443897,-460.0,0.00017759,2]
[378763233,1755005443907,-460.0,0.00017759,2]
[378763235,1755005443917,-460.0,0.00017759,2]
[378763237,1755005443927,-460.0,0.00017759,2]
[378763239,1755005443936,-460.0,0.00017759,2]
[378763241,1755005443947,-460.0,0.00017759,2]
[378763243,1755005443956,-462.24951918,0.00017759,2]
[378763244,1755005443965,-314.13459046,0.00017759,2]
[378763245,1755005443975,-462.80710685,0.00017759,2]
[378763246,1755005443985,-460.0,0.00017759,2]
[378763248,1755005444000,-462.24178609,0.00017759,2]
[378763250,1755005444012,-460.0,0.00017759,2]
[378763252,1755005444023,-460.0,0.00017759,2]
[378763255,1755005444033,-460.0,0.00017759,2]
[378763256,1755005444043,-462.00351697,0.00017759,2]
[378763257,1755005444053,-460.0,0.00017759,2]
[378763258,1755005444063,-460.0,0.00017759,2]
[378763259,1755005444074,-461.29878547,0.00017759,2]
[378763260,1755005444085,-460.0,0.00017759,2]
[378763261,1755005444095,-460.0,0.00017759,2]
[378763262,1755005444105,-460.0,0.00017759,2]
[378763263,1755005444115,-460.0,0.00017759,2]
[378763264,1755005444124,-460.0,0.00017759,2]
[378763265,1755005444135,-460.0,0.00017759,2]
[378763266,1755005444145,-460.0,0.00017759,2]
[378763267,1755005444155,-460.0,0.00017759,2]
[378763268,1755005444164,-471.60113941,0.00017759,2]
[378763269,1755005444174,-460.0,0.00017759,2]
[378763270,1755005444183,-460.0,0.00017759,2]
[378763271,1755005444197,-500.0,0.00017759,2]
[378763272,1755005444207,-500.0,0.00017759,2]
[378763273,1755005444217,-460.0,0.00017759,2]
[378763274,1755005444227,-460.0,0.00017759,2]
[378763275,1755005444236,-460.0,0.00017759,2]
[378763276,1755005444253,-460.0,0.00017759,2]
[378763277,1755005444263,-460.0,0.00017759,2]
[378763278,1755005444273,-460.0,0.00017759,2]
[378763279,1755005444283,-460.0,0.00017759,2]
[378763280,1755005444293,-460.0,0.00017759,2]
[378763281,1755005444303,-460.0,0.00017759,2]
[378763282,1755005444314,-308.83253291,0.00017759,2]
[378763283,1755005444323,-460.0,0.00017759,2]
[378763284,1755005444332,-500.0,0.00017759,2]
[378763285,1755005444342,-460.0,0.00017759,2]
[378763286,1755005444352,-461.04858743,0.00017759,2]
[378763287,1755005444362,-460.0,0.00017759,2]
[378763288,1755005444371,-460.0,0.00017759,2]
[378763289,1755005444380,-460.0,0.00017759,2]
[378763290,1755005444389,-460.0,0.00017759,2]
[378763291,1755005444399,-460.0,0.00017759,2]
[378763292,1755005444409,-460.0,0.00017759,2]
[378763293,1755005444423,-460.0,0.00017759,2]
[378763294,1755005444439,-460.0,0.00017759,2]
[378763295,1755005444448,-462.82856911,0.00017759,2]
[378763296,1755005444458,-323.55845556,0.00017759,2]
[378763297,1755005444467,-460.0,0.00017759,2]
[378763298,1755005444477,-461.88001973,0.00017759,2]
[378763299,1755005444486,-675.31,0.00017759,2]
[378763300,1755005444498,-460.0,0.00017759,2]
[378763301,1755005444507,-460.0,0.00017759,2]
[378763302,1755005444517,-460.0,0.00017759,2]
[378763303,1755005444526,-460.0,0.00017759,2]
[378763304,1755005444535,-500.0,0.00017759,2]
[378763305,1755005444545,-460.0,0.00017759,2]
[378763306,1755005444555,-460.0,0.00017759,2]
[378763307,1755005444564,-460.0,0.00017759,2]
[378763308,1755005444574,-818.72,0.00017759,2]
[378763309,1755005444583,-460.0,0.00017759,2]
[378763310,1755005444593,-488.17488614,0.00017759,2]
[378763311,1755005444602,-460.0,0.00017759,2]
[378763312,1755005444616,-460.0,0.00017759,2]
[378763313,1755005444626,-460.0,0.00017759,2]
[378763314,1755005444635,-460.0,0.00017759,2]
[378763315,1755005444644,-460.0,0.00017759,2]
[378763316,1755005444654,-460.0,0.00017759,2]
[378763317,1755005444664,-460.0,0.00017759,2]
[378763318,1755005444673,-182.03440314,0.00017759,2]
[378763319,1755005444683,-460.0,0.00017759,2]
[378763320,1755005444693,-460.0,0.00017759,2]
[378763321,1755005444705,-462.76440826,0.00017759,2]
[378763322,1755005444715,-460.0,0.00017759,2]
[378763323,1755005444724,-460.0,0.00017759,2]
[378763324,1755005444733,-460.0,0.00017759,2]
[378763325,1755005444743,-225.14557048,0.00017759,2]
[378763326,1755005444755,-460.0,0.00017759,2]
[378763327,1755005444764,-460.0,0.00017759,2]
[378763328,1755005444773,-460.0,0.00017759,2]
[378763329,1755005444782,-356.7082994,0.00017759,2]
[378763330,1755005444792,-466.19376159,0.00017759,2]
[378763331,1755005444801,-460.0,0.00017759,2]
[378763332,1755005444811,-460.0,0.00017759,2]
[378763333,1755005444820,-460.0,0.00017759,2]
[378763334,1755005444829,-460.0,0.00017759,2]
[378763335,1755005444838,-460.0,0.00017759,2]
[378763336,1755005444847,-460.0,0.00017759,2]
[378763337,1755005444857,-405.63140653,0.00017759,2]
[378763338,1755005444866,-460.0,0.00017759,2]
[378763339,1755005444875,-460.0,0.00017759,2]
[378763340,1755005444884,-1116.68258953,0.00017759,2]
[378763341,1755005444894,-460.0,0.00017759,2]
[378763342,1755005444903,-330.64939674,0.00017759,2]
[378763343,1755005444912,-460.0,0.00017759,2]
[378763344,1755005444921,-460.0,0.00017759,2]
[378763345,1755005444931,-460.0,0.00017759,2]
[378763346,1755005444940,-460.0,0.00017759,2]
[378763347,1755005444950,-460.0,0.00017759,2]
[378763348,1755005444960,-460.0,0.00017759,2]
[378763349,1755005444970,-460.0,0.00017759,2]
[378763350,1755005444980,-460.0,0.00017759,2]
[378763351,1755005444989,-460.0,0.00017759,2]
[378763352,1755005445003,-460.0,0.00017759,2]
[378763353,1755005445013,-460.0,0.00017759,2]
[378763354,1755005445023,-460.0,0.00017759,2]
[378763355,1755005445034,-460.0,0.00017759,2]
[378763356,1755005445044,-460.0,0.00017759,2]
[378763357,1755005445054,-460.0,0.00017759,2]
[378763358,1755005445064,-804.23,0.00017759,2]
[378763359,1755005445073,-460.0,0.00017759,2]
[378763360,1755005445083,-684.84,0.00017759,2]
[378763361,1755005445092,-460.0,0.00017759,2]
[378763362,1755005445100,-460.0,0.00017759,2]
[378763363,1755005445110,-608.62467816,0.00017759,2]
[378763364,1755005445120,-460.0,0.00017759,2]
[378763365,1755005445130,-460.0,0.00017759,2]
[378763366,1755005445140,-460.69610991,0.00017759,2]
[378763367,1755005445149,-500.0,0.00017759,2]
[378763368,1755005445159,-460.0,0.00017759,2]
[378763369,1755005445168,-460.0,0.00017759,2]
[378763370,1755005445178,-461.01615688,0.00017759,2]
[378763371,1755005445188,-460.0,0.00017759,2]
[378763372,1755005445198,-460.0,0.00017759,2]
[378763373,1755005445208,-460.0,0.00017759,2]
[378763374,1755005445218,-460.0,0.00017759,2]
[378763375,1755005445228,-460.0,0.00017759,2]
[378763376,1755005445237,-460.0,0.00017759,2]
[378763377,1755005445252,-460.0,0.00017759,2]
[378763378,1755005445262,-460.0,0.00017759,2]
[378763379,1755005445273,-460.0,0.00017759,2]
[378763380,1755005445283,-460.0,0.00017759,2]
[378763381,1755005445293,-460.0,0.00017759,2]
[378763382,1755005445303,-460.0,0.00017759,2]
[378763383,1755005445312,-460.0,0.00017759,2]
[378763384,1755005445323,-460.0,0.00017759,2]
[378763385,1755005445332,-460.0,0.00017759,2]
[378763386,1755005445342,-460.0,0.00017759,2]
[378763387,1755005445352,-460.0,0.00017759,2]
[378763388,1755005445361,-460.0,0.00017759,2]
[378763389,1755005445370,-500.0,0.0001776,2]
[378763390,1755005445380,-151.0,0.0001776,2]
[378763391,1755005445390,-500.0,0.0001776,2]
[378763392,1755005445400,-524.07916061,0.0001776,2]
[378763393,1755005445409,-500.0,0.0001776,2]
[378763394,1755005445419,-500.0,0.0001776,2]
[378763395,1755005445428,-500.0,0.0001776,2]
[378763396,1755005445438,-500.0,0.0001776,2]
[378763397,1755005445448,-500.0,0.0001776,2]
[378763398,1755005445458,-500.0,0.0001776,2]
[378763399,1755005445467,-416.4,0.0001776,2]
[378763400,1755005445476,-151.0,0.00017761,2]
[378763401,1755005445485,-234982.61627056,0.00017761,2]
[378763402,1755005445498,-226.98578874,0.00017773,2]
[378763403,1755005445507,-500.0,0.00017773,2]
[378763404,1755005445517,-504.89955754,0.00017773,2]
[378763405,1755005445526,-500.0,0.00017773,2]
[378763406,1755005445536,-500.0,0.00017773,2]
[378763407,1755005445545,-500.0,0.00017773,2]
[378763408,1755005445554,-500.0,0.00017773,2]
[378763409,1755005445563,-500.0,0.00017773,2]
[378763410,1755005445572,-500.0,0.00017773,2]
[378763411,1755005445581,-500.0,0.00017773,2]
[378763412,1755005445591,-525.41473135,0.00017773,2]
[378763413,1755005445600,-500.0,0.00017773,2]
[378763414,1755005445610,-500.0,0.00017773,2]
[378763415,1755005445619,-3620.14214527,0.00017792,2]
[378763416,1755005445632,-151.0,0.000178,2]
[378763417,1755005445642,-800.0,0.00017838,2]
[378763418,1755005445653,-286.0,0.00017848,2]
[378763419,1755005445662,-460.0,0.00017855,2]
[378763420,1755005445673,-460.0,0.00017855,2]
[378763421,1755005445683,-460.0,0.00017855,2]
[378763422,1755005445693,-460.0,0.00017855,2]
[378763423,1755005445703,-702.14,0.00017855,2]
[378763424,1755005445714,-460.0,0.00017855,2]
[378763425,1755005445723,-460.0,0.00017855,2]
[378763426,1755005445733,-460.0,0.00017855,2]
[378763427,1755005445742,-460.0,0.00017855,2]
[378763428,1755005445755,-460.0,0.00017855,2]
[378763429,1755005445764,-460.0,0.00017855,2]
[378763430,1755005445773,-460.0,0.00017855,2]
[378763431,1755005445781,-460.0,0.00017855,2]
[378763432,1755005445791,-460.0,0.00017855,2]
[378763433,1755005445800,-460.0,0.00017855,2]
[378763434,1755005445810,-460.0,0.00017855,2]
[378763435,1755005445819,-460.0,0.00017855,2]
[378763436,1755005445829,-460.0,0.00017855,2]
[378763437,1755005445838,-509.5,0.00017855,2]
[378763438,1755005445847,-460.0,0.00017855,2]
[378763439,1755005445857,-460.0,0.00017855,2]
[378763440,1755005445867,-460.0,0.00017855,2]
[378763441,1755005445876,-460.0,0.00017855,2]
[378763442,1755005445886,-460.0,0.00017855,2]
[378763443,1755005445895,-460.0,0.00017855,2]
[378763444,1755005445905,-460.0,0.00017855,2]
[378763445,1755005445914,-2211.94,0.00017855,2]
[378763446,1755005445924,-339.58949994,0.00017855,2]
[378763447,1755005445933,-460.0,0.00017855,2]
[378763448,1755005445942,-163.24289654,0.00017855,2]
[378763449,1755005445952,-460.0,0.00017855,2]
[378763450,1755005445962,-460.0,0.00017855,2]
[378763451,1755005445971,-460.0,0.00017855,2]
[378763452,1755005445981,-151.0,0.00017859,2]
[378763453,1755005445990,-500.0,0.00017859,2]
[378763454,1755005446006,-500.0,0.00017859,2]
[378763455,1755005446016,-151.0,0.00017859,2]
[378763456,1755005446026,-500.0,0.00017859,2]
[378763457,1755005446037,-500.0,0.00017859,2]
[378763458,1755005446047,-500.0,0.00017859,2]
[378763459,1755005446056,-151.0,0.00017859,2]
[378763460,1755005446066,-151.0,0.00017859,2]
[378763461,1755005446076,-464.59360669,0.00017863,2]
[378763462,1755005446086,-460.0,0.00017863,2]
[378763463,1755005446096,-460.0,0.00017863,2]
[378763464,1755005446105,-325.0,0.00017863,2]
[378763465,1755005446115,-151.0,0.00017863,2]
[378763466,1755005446124,-151.0,0.00017863,2]
[378763467,1755005446133,-151.0,0.00017863,2]
[378763468,1755005446143,-3207.857138,0.00017863,2]
[378763469,1755005446152,-3207.857138,0.00017863,2]
[378763470,1755005446163,-151.0,0.00017863,2]
[378763472,1755005446173,-151.0,0.00017863,2]
[378763474,1755005446183,-152.017911,0.00017863,2]
[378763476,1755005446194,-1760.0,0.00017863,2]
[378763478,1755005446204,-1166.42637111,0.00017863,2]
[378763479,1755005446215,-415.9458307,0.00017863,2]
[378763480,1755005446224,-1760.0,0.00017863,2]
[378763481,1755005446234,-1760.0,0.00017863,2]
[378763482,1755005446245,-221.01508693,0.00017863,2]
[378763483,1755005446260,-325.0,0.00017863,2]
[378763484,1755005446270,-325.0,0.00017863,2]
[378763485,1755005446281,-325.0,0.00017863,2]
[378763486,1755005446290,-564.82436377,0.00017873,2]
[378763487,1755005446300,-500.26391624,0.00017873,2]
[378763488,1755005446309,-503.0800226,0.00017873,2]
[378763489,1755005446319,-507.71684695,0.00017873,2]
[378763490,1755005446328,-500.0,0.00017873,2]
[378763491,1755005446337,-502.70692224,0.00017873,2]
[378763492,1755005446346,-500.0,0.00017873,2]
[378763493,1755005446356,-500.0,0.00017873,2]
[378763494,1755005446365,-500.0,0.00017873,2]
[378763495,1755005446376,-500.0,0.00017873,2]
[378763496,1755005446386,-151.0,0.000179,2]
[378763497,1755005446396,-3620.14214527,0.00017928,2]
[378763498,1755005446405,-1200.0,0.00018,2]
[378763499,1755005446414,-151.0,0.00018,2]
[378763500,1755005446423,-151.0,0.00018,2]
[378763501,1755005446433,-151.0,0.00018,2]
[378763502,1755005446443,-460.0,0.00018021,2]
[378763503,1755005446452,-460.0,0.00018021,2]
[378763504,1755005446462,-460.0,0.00018021,2]
[378763505,1755005446472,-460.0,0.00018021,2]
[378763506,1755005446484,-460.0,0.00018021,2]
[378763507,1755005446494,-2984.66,0.00018022,2]
[378763508,1755005446507,-460.0,0.00018022,2]
[378763509,1755005446517,-466.81592561,0.00018022,2]
[378763510,1755005446527,-460.0,0.00018022,2]
[378763511,1755005446536,-811.61,0.00018022,2]
[378763513,1755005446546,-460.0,0.00018022,2]
[378763515,1755005446556,-151.0,0.00018022,2]
[378763516,1755005446566,-506.91,0.00018022,2]
[378763517,1755005446577,-151.0,0.00018022,2]
[378763518,1755005446587,-460.0,0.00018022,2]
[378763519,1755005446597,-480.47,0.00018022,2]
[378763521,1755005446607,-151.0,0.00018022,2]
[378763522,1755005446620,-460.0,0.00018022,2]
[378763523,1755005446630,-497.88,0.00018022,2]
[378763524,1755005446641,-151.0,0.00018022,2]
[378763525,1755005446652,-604.82,0.00018022,2]
[378763526,1755005446663,-4366.05,0.00018022,2]
[378763528,1755005446673,-460.0,0.00018022,2]
[378763530,1755005446684,-4278.72,0.00018022,2]
[378763531,1755005446696,-460.0,0.00018022,2]
[378763532,1755005446706,-460.0,0.00018022,2]
[378763533,1755005446716,-460.0,0.00018022,2]
[378763534,1755005446725,-460.0,0.00018022,2]
[378763535,1755005446735,-2199.99,0.00018022,2]
[378763536,1755005446748,-7997.19,0.00018022,2]
[378763537,1755005446758,-765.83,0.00018022,2]
[378763538,1755005446768,-433.786343,0.00018022,2]
[378763539,1755005446778,-433.786343,0.00018022,2]
[378763540,1755005446789,-609.53713742,0.00018022,2]
[378763541,1755005446799,-2255.45,0.00018022,2]
[378763542,1755005446809,-378.351434,0.00018022,2]
[378763543,1755005446819,-460.0,0.00018022,2]
[378763544,1755005446829,-378.351434,0.00018022,2]
[378763545,1755005446838,-703.69,0.00018022,2]
[378763546,1755005446848,-460.0,0.00018022,2]
[378763547,1755005446858,-460.0,0.00018022,2]
[378763548,1755005446867,-152.216516,0.00018024,2]
[378763549,1755005446877,-151.0,0.00018024,2]
[378763550,1755005446887,-151.0,0.00018024,2]
[378763551,1755005446896,-151.0,0.00018024,2]
[378763552,1755005446906,-151.0,0.00018024,2]
[378763553,1755005446915,-2663.14,0.00018024,2]
[378763554,1755005446925,-460.0,0.00018024,2]
[378763555,1755005446934,-460.0,0.00018024,2]
[378763556,1755005446943,-151.0,0.00018024,2]
[378763557,1755005446953,-460.0,0.00018024,2]
[378763558,1755005446963,-4208.04,0.00018024,2]
[378763559,1755005446972,-706.14,0.00018024,2]
[378763560,1755005446982,-151.0,0.00018024,2]
[378763561,1755005446992,-460.0,0.00018024,2]
[378763562,1755005447009,-1539.46,0.00018024,2]
[378763563,1755005447020,-1419.39,0.00018024,2]
[378763564,1755005447029,-952.152247,0.00018024,2]
[378763565,1755005447039,-952.152247,0.00018024,2]
[378763566,1755005447049,-460.0,0.00018024,2]
[378763567,1755005447059,-460.0,0.00018024,2]
[378763568,1755005447069,-460.0,0.00018024,2]
[378763569,1755005447079,-151.0,0.00018024,2]
[378763570,1755005447089,-460.0,0.00018024,2]
[378763571,1755005447099,-839.14,0.00018024,2]
[378763572,1755005447109,-780.4,0.00018024,2]
[378763573,1755005447119,-151.0,0.00018024,2]
[378763574,1755005447128,-1414.79,0.00018024,2]
[378763575,1755005447138,-460.0,0.00018024,2]
[378763576,1755005447148,-460.0,0.00018024,2]
[378763577,1755005447157,-151.0,0.00018024,2]
[378763578,1755005447167,-460.0,0.00018024,2]
[378763579,1755005447176,-460.0,0.00018024,2]
[378763580,1755005447186,-583.66,0.00018024,2]
[378763581,1755005447197,-460.0,0.00018024,2]
[378763582,1755005447207,-181.146924,0.00018024,2]
[378763583,1755005447364,-181.146924,0.00018024,2]
[378763584,1755005447375,-460.0,0.00018024,2]
[378763585,1755005447387,-151.0,0.00018024,2]
[378763586,1755005447397,-500.0,0.0001803,2]
[378763587,1755005447408,-151.0,0.0001803,2]
[378763588,1755005447418,-500.0,0.0001803,2]
[378763589,1755005447428,-500.0,0.0001803,2]
[378763590,1755005447438,-151.0,0.0001803,2]
[378763591,1755005447448,-1521.0,0.0001803,2]
[378763592,1755005447457,-2415.0,0.0001803,2]
[378763593,1755005447467,-500.0,0.0001803,2]
[378763594,1755005447477,-3088.59,0.0001803,2]
[378763595,1755005447487,-460.0,0.0001803,2]
[378763596,1755005447501,-1613.89,0.0001803,2]
[378763597,1755005447511,-1500.07,0.0001803,2]
[378763598,1755005447521,-857.01,0.0001803,2]
[378763599,1755005447532,-460.0,0.0001803,2]
[378763600,1755005447542,-460.0,0.0001803,2]
[378763601,1755005447552,-2593.61,0.0001803,2]
[378763602,1755005447562,-195.96,0.0001803,2]
[378763603,1755005447571,-4009.66,0.0001803,2]
[378763604,1755005447581,-460.0,0.0001803,2]
[378763605,1755005447591,-151.0,0.0001803,2]
[378763606,1755005447601,-500.0,0.00018031,2]
[378763607,1755005447613,-500.0,0.00018031,2]
[378763608,1755005447623,-151.0,0.00018031,2]
[378763609,1755005447636,-500.0,0.00018031,2]
[378763610,1755005447645,-151.0,0.00018031,2]
[378763611,1755005447657,-151.0,0.00018031,2]
[378763612,1755005447667,-151.0,0.00018031,2]
[378763613,1755005447677,-151.0,0.00018031,2]
[378763614,1755005447687,-500.0,0.00018031,2]
[378763615,1755005447698,-843.95,0.00018031,2]